[Event "Sunway Sitges Chess Festival"]
[Date "2024.12.21"]
[White "Jaksland, Tim"]
[Black "Anand, Batsukh"]
[WhiteElo "2107"]
[BlackElo "2290"]
[Round "8.30"]
[Result "1-0"]
[TimeControl "40/5400+30:1800+30"]

1. d4 {[%clk 1:30:55]} 1... Nf6 {[%clk 1:30:54]} 2. Nc3 {[%clk 1:31:18]} 2... d5
{[%clk 1:31:16]} 3. Bf4 {[%clk 1:31:41]} 3... a6 {[%clk 1:31:37]} 4. e3 {[%clk
1:31:43]} 4... c5 {[%clk 1:30:01]} 5. dxc5 {[%clk 1:31:47]} 5... Nc6 {[%clk
1:29:27]} 6. a3 {[%clk 1:27:41]} 6... e5 {[%clk 1:23:26]} 7. Bg5 {[%clk
1:27:16]} 7... Be6 {[%clk 1:21:48]} 8. b4 {[%clk 1:25:58]} 8... Be7 {[%clk
1:19:27]} 9. Nf3 {[%clk 1:25:11]} 9... d4 {[%clk 1:14:37]} 10. exd4 {[%clk
1:18:34]} 10... exd4 {[%clk 1:03:31]} 11. Bxf6 {[%clk 1:14:01]} 11... gxf6
{[%clk 0:52:41]} 12. Ne2 {[%clk 0:58:21]} 12... Qd5 {[%clk 0:45:26]} 13. Nexd4
{[%clk 0:56:34]} 13... O-O-O {[%clk 0:45:20]} 14. c3 {[%clk 0:49:00]} 14... Rhg8
{[%clk 0:44:05]} 15. Qc2 {[%clk 0:44:00]} 15... Bf8 {[%clk 0:28:43]} 16. Bd3
{[%clk 0:15:21]} 16... Bh6 {[%clk 0:23:06]} 17. Be4 {[%clk 0:12:10]} 17... Nxd4
{[%clk 0:21:48]} 18. Nxd4 {[%clk 0:11:23]} 18... Qc4 {[%clk 0:19:50]} 19. Qd3
{[%clk 0:06:05]} 19... Qxd3 {[%clk 0:19:38]} 20. Bxd3 {[%clk 0:06:34]} 20... Bd5
{[%clk 0:19:50]} 21. Rg1 {[%clk 0:01:31]} 21... Bxg2 {[%clk 0:17:31]} 22. Kd1
{[%clk 0:01:36]} 22... Bf4 {[%clk 0:16:47]} 23. Kc2 {[%clk 0:01:33]} 23... Bxh2
{[%clk 0:17:02]} 24. Rge1 {[%clk 0:01:46]} 24... h5 {[%clk 0:11:55]} 25. Re7
{[%clk 0:02:12]} 25... Bc7 {[%clk 0:08:47]} 26. b5 {[%clk 0:02:13]} 26... Rxd4
{[%clk 0:06:01]} 27. cxd4 {[%clk 0:02:37]} 27... axb5 {[%clk 0:06:28]} 28. Rxf7
{[%clk 0:02:42]} 28... Rh8 {[%clk 0:06:36]} 29. Re1 {[%clk 0:02:31]} 29... h4
{[%clk 0:05:12]} 30. Bf5+ {[%clk 0:01:54]} 30... Kb8 {[%clk 0:05:37]} 31. Ree7
{[%clk 0:02:17]} 31... Bf4 {[%clk 0:05:05]} 32. Rh7 {[%clk 0:02:25]} 32... Rd8
{[%clk 0:04:12]} 33. Be4 {[%clk 0:02:31]} 33... Bxe4+ {[%clk 0:03:06]} 34. Rxe4
{[%clk 0:02:55]} 34... Bg5 {[%clk 0:03:34]} 35. Ree7 {[%clk 0:02:06]} 35... Rxd4
{[%clk 0:03:27]} 36. Rxb7+ {[%clk 0:02:22]} 36... Kc8 {[%clk 0:02:05]} 37. Ra7
{[%clk 0:02:13]} 37... Kb8 {[%clk 0:02:20]} 38. Raf7 {[%clk 0:02:20]} 38... Rc4+
{[%clk 0:02:28]} 39. Kb3 {[%clk 0:02:30]} 39... Rxc5 {[%clk 0:02:45]} 40. Kb4
{[%clk 0:32:30]} 40... Rc2 {[%clk 0:32:52]} 41. Rf8+ {[%clk 0:32:31]} 41... Rc8
{[%clk 0:33:15]} 42. Rxc8+ {[%clk 0:32:55]} 42... Kxc8 {[%clk 0:33:37]} 43. Kxb5
{[%clk 0:33:20]} 43... Kd8 {[%clk 0:32:25]} 44. a4 {[%clk 0:33:01]} 44... Bd2
{[%clk 0:32:37]} 45. Rxh4 {[%clk 0:32:16]} 45... Ke7 {[%clk 0:32:48]} 46. a5
{[%clk 0:32:29]} 46... Bxa5 {[%clk 0:32:38]} 47. Kxa5 {[%clk 0:32:53]} 47... Ke6
{[%clk 0:33:05]} 48. Kb5 {[%clk 0:33:06]} 48... Kd5 {[%clk 0:33:25]} 49. f3
{[%clk 0:33:10]} 49... f5 {[%clk 0:33:50]} 50. Rc4 {[%clk 0:33:24]} 50... Ke5
{[%clk 0:34:14]} 51. f4+ {[%clk 0:33:50]} 51... Ke6 {[%clk 0:34:38]} 52. Kc6
{[%clk 0:34:10]} 52... Kf6 {[%clk 0:35:01]} 53. Kd5 {[%clk 0:34:36]} 53... Kg6
{[%clk 0:35:08]} 54. Ke5 {[%clk 0:35:01]} 54... Kh5 {[%clk 0:35:33]} 55. Kxf5
{[%clk 0:35:22]} 1-0

[Variant "Standard"]
[Site "Europe Echecs"]

[Event "Sunway Sitges Chess Festival"]
[Date "2024.12.21"]
[White "Patel, Zain"]
[Black "Ilkhomi, Jaloliddin"]
[WhiteElo "2099"]
[BlackElo "2278"]
[Round "8.31"]
[Result "0-1"]
[TimeControl "40/5400+30:1800+30"]

1. Nf3 {[%clk 1:19:24]} 1... Nf6 {[%clk 1:30:56]} 2. d4 {[%clk 1:18:15]} 2... e6
{[%clk 1:31:21]} 3. e3 {[%clk 1:16:38]} 3... b6 {[%clk 1:31:41]} 4. Bd3 {[%clk
1:16:15]} 4... Bb7 {[%clk 1:32:02]} 5. O-O {[%clk 1:16:38]} 5... c5 {[%clk
1:32:17]} 6. b3 {[%clk 1:15:18]} 6... Nc6 {[%clk 1:31:34]} 7. a3 {[%clk
1:13:45]} 7... d6 {[%clk 1:30:28]} 8. Bb2 {[%clk 1:12:20]} 8... Be7 {[%clk
1:30:46]} 9. Nbd2 {[%clk 1:12:09]} 9... O-O {[%clk 1:30:54]} 10. Ne4 {[%clk
1:04:59]} 10... Nxe4 {[%clk 1:28:12]} 11. Bxe4 {[%clk 1:05:23]} 11... d5 {[%clk
1:18:00]} 12. Bd3 {[%clk 1:05:17]} 12... Rc8 {[%clk 1:17:32]} 13. dxc5 {[%clk
1:01:50]} 13... bxc5 {[%clk 1:15:08]} 14. c4 {[%clk 1:01:05]} 14... dxc4 {[%clk
0:59:47]} 15. Bxc4 {[%clk 0:58:04]} 15... Na5 {[%clk 0:50:08]} 16. Be2 {[%clk
0:55:51]} 16... Qxd1 {[%clk 0:43:48]} 17. Raxd1 {[%clk 0:54:24]} 17... Bd5
{[%clk 0:41:52]} 18. Nd2 {[%clk 0:52:17]} 18... Rfd8 {[%clk 0:32:14]} 19. e4
{[%clk 0:46:42]} 19... Bxb3 {[%clk 0:30:52]} 20. Nxb3 {[%clk 0:46:32]} 20...
Nxb3 {[%clk 0:31:19]} 21. Ba6 {[%clk 0:45:11]} 21... Rxd1 {[%clk 0:31:20]} 22.
Rxd1 {[%clk 0:45:02]} 22... Rd8 {[%clk 0:31:49]} 23. Rxd8+ {[%clk 0:43:51]}
23... Bxd8 {[%clk 0:32:17]} 24. Bc3 {[%clk 0:43:21]} 24... Bf6 {[%clk 0:23:17]}
25. Bc4 {[%clk 0:42:24]} 25... Bxc3 {[%clk 0:22:39]} 26. Bxb3 {[%clk 0:42:48]}
26... g5 {[%clk 0:22:54]} 27. f3 {[%clk 0:41:55]} 27... Kg7 {[%clk 0:23:15]} 28.
Kf2 {[%clk 0:42:05]} 28... Kf6 {[%clk 0:23:38]} 29. Ke3 {[%clk 0:40:59]} 29...
Ke5 {[%clk 0:24:02]} 30. g3 {[%clk 0:40:12]} 30... Bd4+ {[%clk 0:24:01]} 31. Ke2
{[%clk 0:39:17]} 31... Bg1 {[%clk 0:24:21]} 32. Kf1 {[%clk 0:38:48]} 32... Bxh2
{[%clk 0:22:55]} 33. Kg2 {[%clk 0:37:48]} 33... Bxg3 {[%clk 0:23:16]} 34. Kxg3
{[%clk 0:38:13]} 34... h5 {[%clk 0:23:11]} 35. Kf2 {[%clk 0:33:03]} 35... Kd4
{[%clk 0:22:15]} 36. Ke2 {[%clk 0:32:16]} 36... h4 {[%clk 0:22:18]} 37. Ba4
{[%clk 0:32:29]} 37... c4 {[%clk 0:21:18]} 38. Be8 {[%clk 0:31:20]} 38... c3
{[%clk 0:21:16]} 39. Ba4 {[%clk 0:30:30]} 39... h3 {[%clk 0:20:40]} 40. Kf2
{[%clk 1:00:58]} 40... Kd3 {[%clk 0:50:42]} 41. Kg3 {[%clk 1:01:20]} 41... c2
{[%clk 0:50:36]} 42. Bxc2+ {[%clk 1:01:47]} 42... Kxc2 {[%clk 0:51:01]} 43. Kxh3
{[%clk 1:02:11]} 43... f5 {[%clk 0:51:25]} 0-1

[Variant "Standard"]
[Site "Europe Echecs"]

[Event "Sunway Sitges Chess Festival"]
[Date "2024.12.21"]
[White "Hong, Xing"]
[Black "Esplugas Esteve, Vicenc"]
[WhiteElo "2070"]
[BlackElo "2277"]
[Round "8.32"]
[Result "0-1"]
[TimeControl "40/5400+30:1800+30"]

1. e4 {[%clk 1:30:28]} 1... e6 {[%clk 1:30:58]} 2. c4 {[%clk 1:30:25]} 2... b6
{[%clk 1:31:03]} 3. Nc3 {[%clk 1:29:58]} 3... Bb7 {[%clk 1:31:27]} 4. Nf3 {[%clk
1:30:06]} 4... Bb4 {[%clk 1:31:22]} 5. Qc2 {[%clk 1:30:02]} 5... f5 {[%clk
1:29:42]} 6. exf5 {[%clk 1:28:15]} 6... Bxf3 {[%clk 1:30:02]} 7. gxf3 {[%clk
1:28:29]} 7... Nc6 {[%clk 1:29:32]} 8. fxe6 {[%clk 1:28:16]} 8... dxe6 {[%clk
1:18:25]} 9. Qe4 {[%clk 1:28:18]} 9... Qd7 {[%clk 1:15:32]} 10. Nd5 {[%clk
1:28:18]} 10... Nf6 {[%clk 1:05:45]} 11. Nxf6+ {[%clk 1:28:26]} 11... gxf6
{[%clk 1:06:10]} 12. Bh3 {[%clk 1:13:46]} 12... Kf7 {[%clk 1:06:13]} 13. O-O
{[%clk 1:01:58]} 13... f5 {[%clk 1:05:06]} 14. Qh4 {[%clk 1:01:57]} 14... h5
{[%clk 1:04:54]} 15. d3 {[%clk 0:58:06]} 15... Ne5 {[%clk 0:54:15]} 16. Kh1
{[%clk 0:57:22]} 16... Rag8 {[%clk 0:51:21]} 17. d4 {[%clk 0:44:11]} 17... Nxf3
{[%clk 0:47:12]} 18. Qf4 {[%clk 0:44:06]} 18... Nxd4 {[%clk 0:43:39]} 19. Be3
{[%clk 0:41:59]} 19... Nc2 {[%clk 0:36:54]} 20. Qf3 {[%clk 0:29:59]} 20... Nxa1
{[%clk 0:37:02]} 21. Rd1 {[%clk 0:30:15]} 21... Bd6 {[%clk 0:35:56]} 22. Rxa1
{[%clk 0:30:39]} 22... Qe7 {[%clk 0:34:31]} 23. Bd4 {[%clk 0:30:35]} 23... Rh6
{[%clk 0:32:00]} 24. Re1 {[%clk 0:27:15]} 24... Rg4 {[%clk 0:29:56]} 25. Qe3
{[%clk 0:21:58]} 25... Bf4 {[%clk 0:29:08]} 26. Qf3 {[%clk 0:20:35]} 26... Qg5
{[%clk 0:27:49]} 27. Qc6 {[%clk 0:19:00]} 27... Qd8 {[%clk 0:24:17]} 28. Bc3
{[%clk 0:16:32]} 28... Rh4 {[%clk 0:19:19]} 29. Qf3 {[%clk 0:10:59]} 29... Rg6
{[%clk 0:19:28]} 30. b3 {[%clk 0:10:35]} 30... Qd6 {[%clk 0:19:15]} 31. b4
{[%clk 0:09:52]} 31... c6 {[%clk 0:14:04]} 32. Ba1 {[%clk 0:08:33]} 32... Bxh2
{[%clk 0:12:30]} 33. c5 {[%clk 0:08:58]} 33... bxc5 {[%clk 0:10:31]} 34. bxc5
{[%clk 0:09:22]} 34... Qc7 {[%clk 0:10:52]} 35. Bxf5 {[%clk 0:08:54]} 35... Bf4+
{[%clk 0:10:48]} 36. Bh3 {[%clk 0:09:20]} 36... Rg3 {[%clk 0:09:41]} 37. Qxg3
{[%clk 0:07:55]} 37... Bxg3 {[%clk 0:09:57]} 38. Kg2 {[%clk 0:08:21]} 38... Bxf2
{[%clk 0:08:20]} 39. Bxe6+ {[%clk 0:08:46]} 39... Kg6 {[%clk 0:08:14]} 40. Be5
{[%clk 0:39:04]} 40... Qe7 {[%clk 0:37:12]} 41. Bd6 {[%clk 0:38:01]} 41... Bxe1
{[%clk 0:34:57]} 42. Bxe7 {[%clk 0:38:25]} 42... Re4 {[%clk 0:35:14]} 0-1

[Variant "Standard"]
[Site "Europe Echecs"]

[Event "Sunway Sitges Chess Festival"]
[Date "2024.12.21"]
[White "Van Zyl-Rudd, Jack"]
[Black "Pecci, William"]
[WhiteElo "2268"]
[BlackElo "2061"]
[Round "8.33"]
[Result "1-0"]
[TimeControl "40/5400+30:1800+30"]

1. c4 {[%clk 1:18:01]} 1... e6 {[%clk 1:30:54]} 2. Nf3 {[%clk 1:17:38]} 2... d5
{[%clk 1:31:14]} 3. g3 {[%clk 1:17:35]} 3... Nf6 {[%clk 1:31:38]} 4. Bg2 {[%clk
1:18:01]} 4... dxc4 {[%clk 1:31:32]} 5. Qa4+ {[%clk 1:18:07]} 5... c6 {[%clk
1:31:52]} 6. Qxc4 {[%clk 1:18:30]} 6... b5 {[%clk 1:32:18]} 7. Qb3 {[%clk
1:16:31]} 7... Bb7 {[%clk 1:31:48]} 8. O-O {[%clk 1:16:36]} 8... Nbd7 {[%clk
1:30:18]} 9. d4 {[%clk 1:15:39]} 9... Be7 {[%clk 1:27:56]} 10. Be3 {[%clk
1:10:18]} 10... O-O {[%clk 1:26:36]} 11. Rc1 {[%clk 1:10:37]} 11... a6 {[%clk
1:23:52]} 12. Nbd2 {[%clk 1:08:09]} 12... Rc8 {[%clk 1:19:02]} 13. a4 {[%clk
1:06:01]} 13... Nd5 {[%clk 1:12:56]} 14. Ne4 {[%clk 1:00:23]} 14... h6 {[%clk
1:05:30]} 15. Ne5 {[%clk 0:55:38]} 15... N7b6 {[%clk 0:46:27]} 16. Nc5 {[%clk
0:47:07]} 16... Bxc5 {[%clk 0:45:04]} 17. dxc5 {[%clk 0:46:09]} 17... Nd7 {[%clk
0:43:35]} 18. Nxd7 {[%clk 0:44:38]} 18... Qxd7 {[%clk 0:43:46]} 19. Bd4 {[%clk
0:29:28]} 19... f6 {[%clk 0:26:05]} 20. e4 {[%clk 0:19:50]} 20... Nc7 {[%clk
0:26:13]} 21. Bc3 {[%clk 0:18:47]} 21... Qf7 {[%clk 0:23:55]} 22. Ba5 {[%clk
0:14:23]} 22... f5 {[%clk 0:17:48]} 23. Qe3 {[%clk 0:08:39]} 23... fxe4 {[%clk
0:13:55]} 24. Bxc7 {[%clk 0:09:03]} 24... Rxc7 {[%clk 0:14:18]} 25. Bxe4 {[%clk
0:08:25]} 25... b4 {[%clk 0:12:01]} 26. Rd1 {[%clk 0:07:49]} 26... a5 {[%clk
0:11:16]} 27. Rd6 {[%clk 0:07:14]} 27... Qf6 {[%clk 0:07:54]} 28. Rb1 {[%clk
0:07:36]} 28... Kh8 {[%clk 0:08:01]} 29. Bg2 {[%clk 0:07:21]} 29... Qf5 {[%clk
0:06:46]} 30. Rbd1 {[%clk 0:04:17]} 30... Qc2 {[%clk 0:04:53]} 31. b3 {[%clk
0:04:39]} 31... Rcf7 {[%clk 0:03:26]} 32. R6d2 {[%clk 0:02:11]} 32... Qf5 {[%clk
0:02:34]} 33. Be4 {[%clk 0:02:09]} 33... Qf6 {[%clk 0:02:03]} 34. Rd7 {[%clk
0:01:04]} 34... Rxd7 {[%clk 0:00:47]} 35. Rxd7 {[%clk 0:01:32]} 35... Qa1+
{[%clk 0:01:12]} 36. Kg2 {[%clk 0:01:40]} 36... Ba6 {[%clk 0:01:36]} 37. Bd3
{[%clk 0:01:21]} 37... Bxd3 {[%clk 0:01:39]} 38. Rxd3 {[%clk 0:01:33]} 38... Qb2
{[%clk 0:01:09]} 39. Rd6 {[%clk 0:01:09]} 39... e5 {[%clk 0:01:04]} 40. Rxc6
{[%clk 0:30:55]} 40... Qc2 {[%clk 0:30:35]} 41. Re6 {[%clk 0:11:11]} 41... e4
{[%clk 0:27:08]} 42. Re7 {[%clk 0:11:22]} 42... Rf6 {[%clk 0:25:47]} 43. Re8+
{[%clk 0:11:31]} 43... Kh7 {[%clk 0:26:14]} 44. Qxe4+ {[%clk 0:11:56]} 44...
Qxe4+ {[%clk 0:25:54]} 45. Rxe4 {[%clk 0:12:24]} 45... Rc6 {[%clk 0:26:11]} 46.
Rc4 {[%clk 0:12:32]} 46... Kg6 {[%clk 0:26:38]} 47. f4 {[%clk 0:12:40]} 47...
Kf5 {[%clk 0:26:49]} 48. Kf3 {[%clk 0:13:05]} 48... h5 {[%clk 0:27:16]} 49. h3
{[%clk 0:13:28]} 49... g6 {[%clk 0:27:41]} 50. g4+ {[%clk 0:13:54]} 50... hxg4+
{[%clk 0:28:08]} 51. hxg4+ {[%clk 0:14:20]} 51... Kf6 {[%clk 0:28:35]} 52. Ke4
{[%clk 0:14:39]} 52... Ke6 {[%clk 0:29:02]} 53. f5+ {[%clk 0:15:00]} 53... gxf5+
{[%clk 0:29:28]} 54. gxf5+ {[%clk 0:15:25]} 54... Kf6 {[%clk 0:29:53]} 55. Kd5
{[%clk 0:15:39]} 1-0

[Variant "Standard"]
[Site "Europe Echecs"]

[Event "Sunway Sitges Chess Festival"]
[Date "2024.12.21"]
[White "Pniaczek, Marek"]
[Black "Makkar, Rajat"]
[WhiteElo "2132"]
[BlackElo "2433"]
[Round "8.34"]
[Result "1-0"]
[TimeControl "40/5400+30:1800+30"]

1. e4 {[%clk 1:29:37]} 1... e5 {[%clk 1:29:55]} 2. Nf3 {[%clk 1:30:02]} 2... Nc6
{[%clk 1:30:22]} 3. Nc3 {[%clk 1:30:29]} 3... Nf6 {[%clk 1:29:47]} 4. Bb5 {[%clk
1:30:54]} 4... Bb4 {[%clk 1:29:24]} 5. O-O {[%clk 1:30:33]} 5... O-O {[%clk
1:29:40]} 6. Bxc6 {[%clk 1:30:19]} 6... bxc6 {[%clk 1:25:34]} 7. Nxe5 {[%clk
1:27:45]} 7... Bxc3 {[%clk 1:23:18]} 8. dxc3 {[%clk 1:25:57]} 8... Nxe4 {[%clk
1:23:28]} 9. Re1 {[%clk 1:24:08]} 9... d5 {[%clk 1:20:28]} 10. f3 {[%clk
1:14:56]} 10... Qf6 {[%clk 1:19:46]} 11. Qd4 {[%clk 0:55:35]} 11... Re8 {[%clk
1:17:22]} 12. Nd3 {[%clk 0:55:10]} 12... Qxd4+ {[%clk 1:15:29]} 13. cxd4 {[%clk
0:55:31]} 13... Nd6 {[%clk 1:15:56]} 14. Rxe8+ {[%clk 0:55:02]} 14... Nxe8
{[%clk 1:16:25]} 15. a4 {[%clk 0:42:33]} 15... f6 {[%clk 1:11:23]} 16. Ra3
{[%clk 0:41:27]} 16... Nd6 {[%clk 1:09:23]} 17. g4 {[%clk 0:38:27]} 17... a5
{[%clk 1:04:05]} 18. Rc3 {[%clk 0:36:50]} 18... Ra6 {[%clk 0:58:22]} 19. b3
{[%clk 0:31:52]} 19... Kf7 {[%clk 0:56:39]} 20. Bd2 {[%clk 0:31:16]} 20... h5
{[%clk 0:56:10]} 21. h3 {[%clk 0:30:02]} 21... hxg4 {[%clk 0:55:47]} 22. hxg4
{[%clk 0:30:25]} 22... g5 {[%clk 0:56:07]} 23. Rc5 {[%clk 0:27:35]} 23... Nb7
{[%clk 0:56:29]} 24. Rc3 {[%clk 0:27:45]} 24... Nd6 {[%clk 0:56:43]} 25. Kg2
{[%clk 0:26:57]} 25... Kg7 {[%clk 0:56:09]} 26. Rc5 {[%clk 0:22:41]} 26... Nb7
{[%clk 0:56:34]} 27. Rc3 {[%clk 0:23:10]} 27... Nd6 {[%clk 0:56:37]} 28. Nc5
{[%clk 0:21:13]} 28... Ra8 {[%clk 0:55:46]} 29. Re3 {[%clk 0:20:51]} 29... Kf7
{[%clk 0:56:09]} 30. Re1 {[%clk 0:19:33]} 30... Nb7 {[%clk 0:48:38]} 31. Nd3
{[%clk 0:15:20]} 31... Bd7 {[%clk 0:46:47]} 32. Rh1 {[%clk 0:14:32]} 32... Kg7
{[%clk 0:46:56]} 33. Re1 {[%clk 0:07:39]} 33... Kf7 {[%clk 0:47:18]} 34. Kg3
{[%clk 0:07:09]} 34... Be6 {[%clk 0:43:28]} 35. Rh1 {[%clk 0:06:45]} 35... Kg7
{[%clk 0:42:23]} 36. Rh2 {[%clk 0:06:25]} 36... Nd6 {[%clk 0:39:19]} 37. Re2
{[%clk 0:05:36]} 37... Kf7 {[%clk 0:39:05]} 38. Nc5 {[%clk 0:05:27]} 38... Bc8
{[%clk 0:39:30]} 39. Rh2 {[%clk 0:05:02]} 39... Kg7 {[%clk 0:39:26]} 40. Re2
{[%clk 0:33:12]} 40... Kf7 {[%clk 1:09:44]} 41. Rh2 {[%clk 0:11:16]} 41... Kg7
{[%clk 1:09:24]} 42. f4 {[%clk 0:11:09]} 42... gxf4+ {[%clk 1:09:05]} 43. Bxf4
{[%clk 0:11:36]} 43... Kg8 {[%clk 1:07:44]} 44. Kf3 {[%clk 0:10:25]} 44... Kg7
{[%clk 1:07:36]} 45. Bh6+ {[%clk 0:08:23]} 45... Kg6 {[%clk 1:06:47]} 46. Bd2
{[%clk 0:08:22]} 46... Kg7 {[%clk 1:05:46]} 47. Bf4 {[%clk 0:08:48]} 47... Kg6
{[%clk 1:05:11]} 48. Kg3 {[%clk 0:05:30]} 48... Kg7 {[%clk 1:05:20]} 49. Rh1
{[%clk 0:05:41]} 49... Kg8 {[%clk 1:04:51]} 50. Rh5 {[%clk 0:05:55]} 50... Kg7
{[%clk 1:02:14]} 51. Rh4 {[%clk 0:05:32]} 51... Kg8 {[%clk 1:01:59]} 52. Kf3
{[%clk 0:05:08]} 52... Kg7 {[%clk 1:01:33]} 53. Rh2 {[%clk 0:04:03]} 53... Kg6
{[%clk 1:01:31]} 54. Re2 {[%clk 0:04:19]} 54... Kf7 {[%clk 1:00:28]} 55. Bh6
{[%clk 0:04:15]} 55... Kg6 {[%clk 0:57:24]} 56. Bd2 {[%clk 0:04:44]} 56... Kf7
{[%clk 0:56:44]} 57. Bf4 {[%clk 0:05:13]} 57... Rb8 {[%clk 0:55:37]} 58. Bd2
{[%clk 0:04:15]} 58... Ra8 {[%clk 0:55:17]} 59. Be1 {[%clk 0:04:44]} 59... Ra7
{[%clk 0:52:13]} 60. Bh4 {[%clk 0:04:38]} 60... Ra8 {[%clk 0:51:13]} 61. Kg3
{[%clk 0:04:51]} 61... Ba6 {[%clk 0:46:18]} 62. Re6 {[%clk 0:02:48]} 62... Rg8
{[%clk 0:25:15]} 63. Rxf6+ {[%clk 0:02:10]} 63... Kg7 {[%clk 0:25:43]} 64. Rxd6
{[%clk 0:01:11]} 64... cxd6 {[%clk 0:25:45]} 65. Nxa6 {[%clk 0:01:41]} 65... Kf7
{[%clk 0:25:57]} 66. b4 {[%clk 0:00:47]} 66... Ra8 {[%clk 0:25:50]} 67. Nc7
{[%clk 0:00:36]} 67... Ra7 {[%clk 0:25:43]} 68. bxa5 {[%clk 0:00:43]} 68... Rxc7
{[%clk 0:25:52]} 69. Bd8 {[%clk 0:00:49]} 69... Rb7 {[%clk 0:24:31]} 70. Bb6
{[%clk 0:01:17]} 70... Kg6 {[%clk 0:23:59]} 71. Kf4 {[%clk 0:01:09]} 71... Rb8
{[%clk 0:21:35]} 72. Ke3 {[%clk 0:00:53]} 72... Kg5 {[%clk 0:21:55]} 73. Kd3
{[%clk 0:00:42]} 73... Kxg4 {[%clk 0:22:11]} 74. c4 {[%clk 0:01:09]} 74... Kf5
{[%clk 0:21:49]} 75. cxd5 {[%clk 0:01:09]} 75... cxd5 {[%clk 0:22:16]} 76. Kc3
{[%clk 0:01:22]} 76... Ke6 {[%clk 0:22:34]} 77. Kb4 {[%clk 0:01:44]} 77... Kd7
{[%clk 0:22:52]} 78. Kb5 {[%clk 0:01:50]} 78... Ra8 {[%clk 0:21:17]} 79. a6
{[%clk 0:02:17]} 79... Rb8 {[%clk 0:21:34]} 80. a7 {[%clk 0:02:34]} 80... Ra8
{[%clk 0:21:54]} 81. a5 {[%clk 0:01:59]} 81... Rc8 {[%clk 0:16:59]} 82. a6
{[%clk 0:02:25]} 82... Ra8 {[%clk 0:15:33]} 83. Ba5 {[%clk 0:02:49]} 1-0

[Variant "Standard"]
[Site "Europe Echecs"]

[Event "Sunway Sitges Chess Festival"]
[Date "2024.12.21"]
[White "Lopez Garcia, Miguel Angel"]
[Black "Filgueiras, Nathan Felipe"]
[WhiteElo "2127"]
[BlackElo "2328"]
[Round "8.35"]
[Result "1/2-1/2"]
[TimeControl "40/5400+30:1800+30"]

1. e4 {[%clk 1:30:56]} 1... c5 {[%clk 1:30:39]} 2. Nf3 {[%clk 1:31:20]} 2... Nc6
{[%clk 1:31:05]} 3. d4 {[%clk 1:31:46]} 3... cxd4 {[%clk 1:31:31]} 4. Nxd4
{[%clk 1:32:10]} 4... e5 {[%clk 1:31:38]} 5. Nb5 {[%clk 1:32:33]} 5... d6 {[%clk
1:32:04]} 6. N1c3 {[%clk 1:32:57]} 6... a6 {[%clk 1:32:02]} 7. Na3 {[%clk
1:33:20]} 7... Be7 {[%clk 1:31:22]} 8. Nc4 {[%clk 1:33:44]} 8... b5 {[%clk
1:31:27]} 9. Ne3 {[%clk 1:34:03]} 9... Nf6 {[%clk 1:31:52]} 10. Bd3 {[%clk
1:34:08]} 10... O-O {[%clk 1:31:11]} 11. O-O {[%clk 1:33:31]} 11... Nb4 {[%clk
1:31:17]} 12. Be2 {[%clk 1:28:49]} 12... Be6 {[%clk 1:29:56]} 13. Ncd5 {[%clk
1:20:35]} 13... Nbxd5 {[%clk 1:20:12]} 14. exd5 {[%clk 1:19:29]} 14... Bd7
{[%clk 1:19:04]} 15. c4 {[%clk 1:18:17]} 15... Ne8 {[%clk 1:15:31]} 16. cxb5
{[%clk 1:12:40]} 16... axb5 {[%clk 1:15:37]} 17. Nc2 {[%clk 1:12:22]} 17... f5
{[%clk 1:02:46]} 18. f4 {[%clk 1:08:11]} 18... Bf6 {[%clk 1:01:18]} 19. Kh1
{[%clk 1:04:47]} 19... Kh8 {[%clk 0:52:11]} 20. Nb4 {[%clk 0:59:57]} 20... exf4
{[%clk 0:43:12]} 21. Bxf4 {[%clk 0:59:42]} 21... Bxb2 {[%clk 0:42:10]} 22. Rb1
{[%clk 0:59:49]} 22... Be5 {[%clk 0:38:09]} 23. Qd2 {[%clk 0:54:27]} 23... Nf6
{[%clk 0:33:04]} 24. Bf3 {[%clk 0:50:59]} 24... Ra4 {[%clk 0:30:09]} 25. Rfc1
{[%clk 0:43:59]} 25... Re8 {[%clk 0:26:40]} 26. Bxe5 {[%clk 0:38:34]} 26... dxe5
{[%clk 0:26:27]} 27. Qb2 {[%clk 0:36:06]} 27... e4 {[%clk 0:18:09]} 28. Be2
{[%clk 0:36:23]} 28... Qa8 {[%clk 0:15:37]} 29. Rc7 {[%clk 0:31:09]} 29... Rxb4
{[%clk 0:13:53]} 30. Qxb4 {[%clk 0:31:27]} 30... Nxd5 {[%clk 0:14:10]} 31. Qd6
{[%clk 0:31:28]} 31... Nxc7 {[%clk 0:14:13]} 32. Qxd7 {[%clk 0:31:47]} 32...
Qxa2 {[%clk 0:12:29]} 33. Re1 {[%clk 0:31:52]} 33... Qc2 {[%clk 0:10:16]} 34.
Qxf5 {[%clk 0:29:03]} 34... Qc6 {[%clk 0:09:58]} 35. Rb1 {[%clk 0:27:13]} 35...
Qf6 {[%clk 0:06:33]} 36. Qd7 {[%clk 0:27:11]} 36... Qe7 {[%clk 0:06:55]} 37.
Bxb5 {[%clk 0:23:50]} 37... Qxd7 {[%clk 0:05:47]} 38. Bxd7 {[%clk 0:24:11]}
38... Rd8 {[%clk 0:06:14]} 39. Kg1 {[%clk 0:23:23]} 39... Nd5 {[%clk 0:01:45]}
40. Bc6 {[%clk 0:46:21]} 40... Nc3 {[%clk 0:31:36]} 41. Rb3 {[%clk 0:39:56]}
41... e3 {[%clk 0:22:04]} 42. Bf3 {[%clk 0:39:40]} 42... Rc8 {[%clk 0:21:58]}
43. Kf1 {[%clk 0:31:10]} 43... h6 {[%clk 0:17:36]} 44. Rb6 {[%clk 0:25:21]}
44... Re8 {[%clk 0:16:26]} 45. Rb3 {[%clk 0:23:13]} 45... Rc8 {[%clk 0:04:21]}
46. Rb6 {[%clk 0:23:26]} 46... e2+ {[%clk 0:03:24]} 47. Bxe2 {[%clk 0:22:14]}
47... Nxe2 {[%clk 0:03:47]} 48. Kxe2 {[%clk 0:22:39]} 48... Rc2+ {[%clk
0:04:10]} 49. Kf3 {[%clk 0:23:02]} 49... Rc3+ {[%clk 0:04:38]} 50. Kf2 {[%clk
0:23:17]} 50... Rc2+ {[%clk 0:05:07]} 51. Kf3 {[%clk 0:23:39]} 51... Rc3+ {[%clk
0:05:34]} 52. Ke4 {[%clk 0:23:27]} 1/2-1/2

[Variant "Standard"]
[Site "Europe Echecs"]